fUSD/lending_fUSD_20250209
["ID","MTS","AMOUNT","RATE_DAILY","PERIOD"]
[352389717,1739071848497,-500.0,9.781e-05,2]
[352389718,1739071848507,-500.0,9.781e-05,2]
[352389719,1739071848517,-500.0,9.781e-05,2]
[352389720,1739071848526,-628.43,9.781e-05,2]
[352389721,1739071848536,-500.0,9.781e-05,2]
[352389722,1739071848546,-500.0,9.781e-05,2]
[352389723,1739071848556,-500.0,9.781e-05,2]
[352389724,1739071848568,-500.0,9.781e-05,2]
[352389725,1739071848579,-1055.42,9.781e-05,2]
[352389726,1739071848588,-500.0,9.781e-05,2]
[352389727,1739071848598,-578.90179708,9.781e-05,2]
[352389728,1739071848608,-500.0,9.781e-05,2]
[352389729,1739071848618,-755.58,9.781e-05,2]
[352389730,1739071848628,-500.0,9.781e-05,2]
[352389731,1739071848637,-776.18,9.781e-05,2]
[352389732,1739071848648,-500.0,9.781e-05,2]
[352389733,1739071848658,-500.0,9.781e-05,2]
[352389734,1739071848668,-500.0,9.781e-05,2]
[352389735,1739071848679,-500.0,9.781e-05,2]
[352389736,1739071848689,-587.15937929,9.781e-05,2]
[352389737,1739071848700,-500.0,9.781e-05,2]
[352389738,1739071848711,-500.0,9.781e-05,2]
[352389739,1739071848723,-500.0,9.781e-05,2]
[352389740,1739071848733,-500.0,9.781e-05,2]
[352389741,1739071848745,-500.0,9.781e-05,2]
[352389742,1739071848755,-500.0,9.781e-05,2]
[352389743,1739071848767,-610.57,9.781e-05,2]
[352389744,1739071848778,-500.0,9.781e-05,2]
[352389745,1739071848789,-500.0,9.781e-05,2]
[352389746,1739071848800,-500.0,9.781e-05,2]
[352389747,1739071848813,-500.0,9.781e-05,2]
[352389748,1739071848823,-500.0,9.781e-05,2]
[352389749,1739071848834,-500.0,9.781e-05,2]
[352389750,1739071848844,-500.0,9.781e-05,2]
[352389751,1739071848854,-500.0,9.781e-05,2]
[352389752,1739071848865,-500.0,9.781e-05,2]
[352389753,1739071848876,-500.0,9.781e-05,2]
[352389754,1739071848887,-500.0,9.781e-05,2]
[352389755,1739071848897,-561.7,9.781e-05,2]
[352389756,1739071848908,-500.0,9.781e-05,2]
[352389757,1739071848919,-500.0,9.781e-05,2]
[352389758,1739071848929,-676.24,9.781e-05,2]
[352389759,1739071848941,-500.0,9.781e-05,2]
[352389760,1739071848951,-500.0,9.781e-05,2]
[352389761,1739071848962,-500.0,9.781e-05,2]
[352389762,1739071848972,-500.0,9.781e-05,2]
[352389763,1739071848982,-500.0,9.781e-05,2]
[352389764,1739071848992,-992.36,9.781e-05,2]
[352389765,1739071849003,-757.28,9.781e-05,2]
[352389766,1739071849014,-500.0,9.781e-05,2]
[352389767,1739071849027,-500.0,9.781e-05,2]
[352389768,1739071849037,-500.0,9.781e-05,2]
[352389769,1739071849046,-500.0,9.781e-05,2]
[352389770,1739071849056,-500.0,9.781e-05,2]
[352389771,1739071849068,-500.0,9.781e-05,2]
[352389772,1739071849078,-500.0,9.781e-05,2]
[352389773,1739071849088,-500.0,9.781e-05,2]
[352389774,1739071849099,-500.0,9.781e-05,2]
[352389775,1739071849109,-572.12,9.781e-05,2]
[352389776,1739071849119,-500.0,9.781e-05,2]
[352389777,1739071849130,-508.42212136,9.781e-05,2]
[352389778,1739071849139,-500.0,9.781e-05,2]
[352389779,1739071849150,-500.0,9.781e-05,2]
[352389780,1739071849160,-500.0,9.781e-05,2]
[352389781,1739071849169,-506.8521286,9.781e-05,2]
[352389782,1739071849179,-500.0,9.781e-05,2]
[352389783,1739071849188,-500.0,9.781e-05,2]
[352389784,1739071849199,-500.0,9.781e-05,2]
[352389785,1739071849209,-526.36,9.781e-05,2]
[352389786,1739071849219,-500.0,9.781e-05,2]
[352389787,1739071849229,-500.0,9.781e-05,2]
[352389788,1739071849239,-538.09,9.781e-05,2]
[352389789,1739071849249,-523.98,9.781e-05,2]
[352389790,1739071849259,-553.37,9.781e-05,2]
[352389791,1739071849269,-500.0,9.781e-05,2]
[352389792,1739071849279,-500.0,9.781e-05,2]
[352389793,1739071849288,-500.0,9.781e-05,2]
[352389794,1739071849299,-500.0,9.781e-05,2]
[352389795,1739071849309,-500.0,9.781e-05,2]
[352389796,1739071849321,-941.55,9.781e-05,2]
[352389797,1739071849330,-500.0,9.781e-05,2]
[352389798,1739071849340,-1180.69,9.781e-05,2]
[352389799,1739071849350,-4828.19,9.781e-05,2]
[352389800,1739071849360,-500.0,9.781e-05,2]
[352389801,1739071849371,-573.85,9.781e-05,2]
[352389802,1739071849381,-500.80372896,9.781e-05,2]
[352389803,1739071849391,-500.0,9.781e-05,2]
[352389804,1739071849402,-500.0,9.781e-05,2]
[352389805,1739071849411,-500.0,9.781e-05,2]
[352389806,1739071849421,-500.0,9.781e-05,2]
[352389807,1739071849430,-500.0,9.781e-05,2]
[352389808,1739071849440,-500.0,9.781e-05,2]
[352389809,1739071849450,-500.0,9.781e-05,2]
[352389810,1739071849459,-1169.31,9.781e-05,2]
[352389811,1739071849469,-886.11,9.781e-05,2]
[352389812,1739071849479,-500.0,9.781e-05,2]
[352389813,1739071849489,-917.97,9.781e-05,2]
[352389814,1739071849499,-2052.96,9.781e-05,2]
[352389815,1739071849509,-500.0,9.781e-05,2]
[352389816,1739071849519,-500.0,9.781e-05,2]
[352389817,1739071849529,-541.12,9.781e-05,2]
[352389818,1739071849539,-500.0,9.782e-05,2]
[352389819,1739071849550,-500.0,9.782e-05,2]
[352389820,1739071849562,-500.0,9.782e-05,2]
[352389821,1739071849572,-500.0,9.782e-05,2]
[352389822,1739071849582,-500.0,9.782e-05,2]
[352389823,1739071849592,-500.0,9.782e-05,2]
[352389824,1739071849602,-500.0,9.782e-05,2]
[352389825,1739071849611,-500.0,9.782e-05,2]
[352389826,1739071849621,-500.0,9.782e-05,2]
[352389827,1739071849631,-500.0,9.782e-05,2]
[352389828,1739071849641,-639.9077848,9.782e-05,2]
[352389829,1739071849651,-500.0,9.782e-05,2]
[352389830,1739071849661,-500.0,9.782e-05,2]
[352389831,1739071849671,-500.0,9.782e-05,2]
[352389832,1739071849681,-500.0,9.782e-05,2]
[352389833,1739071849691,-500.0,9.782e-05,2]
[352389834,1739071849700,-333.02424455,9.782e-05,2]
[352389835,1739071849710,-500.0,9.782e-05,2]
[352389836,1739071849720,-500.0,9.782e-05,2]
[352389837,1739071849730,-500.0,9.782e-05,2]
[352389838,1739071849741,-500.0,9.782e-05,2]
[352389839,1739071849750,-500.0,9.782e-05,2]
[352389840,1739071849760,-530.6,9.782e-05,2]
[352389841,1739071849770,-500.0,9.782e-05,2]
[352389842,1739071849779,-500.0,9.782e-05,2]
[352389843,1739071849790,-500.0,9.782e-05,2]
[352389844,1739071849801,-500.0,9.782e-05,2]
[352389845,1739071849812,-500.0,9.782e-05,2]
[352389846,1739071849822,-500.0,9.782e-05,2]
[352389847,1739071849832,-500.0,9.782e-05,2]
[352389848,1739071849842,-843.72,9.782e-05,2]
[352389849,1739071849852,-500.0,9.782e-05,2]
[352389850,1739071849862,-500.0,9.782e-05,2]
[352389851,1739071849873,-951.06,9.782e-05,2]
[352389852,1739071849884,-500.0,9.782e-05,2]
[352389853,1739071849894,-500.0,9.782e-05,2]
[352389854,1739071849905,-500.0,9.782e-05,2]
[352389855,1739071849916,-500.0,9.782e-05,2]
[352389856,1739071849928,-500.0,9.782e-05,2]
[352389857,1739071849938,-500.0,9.782e-05,2]
[352389858,1739071849948,-500.0,9.782e-05,2]
[352389859,1739071849958,-523.63,9.782e-05,2]
[352389860,1739071849969,-500.0,9.782e-05,2]
[352389861,1739071849978,-599.35,9.782e-05,2]
[352389862,1739071849988,-500.0,9.782e-05,2]
[352389863,1739071850004,-500.0,9.782e-05,2]
[352389864,1739071850015,-575.48,9.782e-05,2]
[352389865,1739071850028,-500.0,9.782e-05,2]
[352389866,1739071850039,-500.0,9.782e-05,2]
[352389867,1739071850049,-634.77208701,9.782e-05,2]
[352389868,1739071850059,-557.04,9.782e-05,2]
[352389869,1739071850071,-500.0,9.782e-05,2]
[352389870,1739071850083,-500.0,9.782e-05,2]
[352389871,1739071850093,-500.0,9.782e-05,2]
[352389872,1739071850108,-500.0,9.782e-05,2]
[352389873,1739071850118,-500.0,9.782e-05,2]
[352389874,1739071850129,-657.45,9.782e-05,2]
[352389875,1739071850140,-500.0,9.782e-05,2]
[352389876,1739071850150,-500.0,9.782e-05,2]
[352389877,1739071850160,-553.28,9.782e-05,2]
[352389878,1739071850171,-506.47,9.782e-05,2]
[352389879,1739071850182,-500.0,9.782e-05,2]
[352389880,1739071850193,-500.0,9.782e-05,2]
[352389881,1739071850203,-500.0,9.782e-05,2]
[352389882,1739071850214,-500.0,9.782e-05,2]
[352389883,1739071850224,-500.0,9.782e-05,2]
[352389884,1739071850234,-500.0,9.782e-05,2]
[352389885,1739071850245,-1000.0,9.786e-05,2]
[352389886,1739071850255,-1184.9,9.8e-05,2]
[352389887,1739071850265,-500.0,9.87e-05,2]
[352389888,1739071850276,-500.0,9.917e-05,2]
[352389889,1739071850286,-500.0,9.917e-05,2]
[352389890,1739071850297,-500.0,9.918e-05,2]
[352389891,1739071850307,-500.0,9.918e-05,2]
[352389892,1739071850318,-500.0,9.918e-05,2]
[352389893,1739071850327,-289.812615,9.918e-05,2]
[352389894,1739071850337,-319.505376,9.918e-05,2]
[352389895,1739071850348,-500.0,9.918e-05,2]
[352389896,1739071850359,-500.0,9.918e-05,2]
[352389897,1739071850370,-500.0,9.918e-05,2]
[352389898,1739071850380,-500.0,9.918e-05,2]
[352389899,1739071850391,-500.0,9.918e-05,2]
[352389900,1739071850401,-628.43,9.918e-05,2]
[352389901,1739071850412,-500.0,9.918e-05,2]
[352389902,1739071850423,-500.0,9.918e-05,2]
[352389903,1739071850433,-500.0,9.918e-05,2]
[352389904,1739071850443,-500.0,9.918e-05,2]
[352389905,1739071850453,-1055.42,9.918e-05,2]
[352389906,1739071850463,-395.92585495,9.918e-05,2]
[352389907,1739071850474,-500.0,9.918e-05,2]
[352389908,1739071850674,-755.58,9.918e-05,2]
[352389909,1739071850688,-500.0,9.918e-05,2]
[352389910,1739071850697,-776.18,9.918e-05,2]
[352389911,1739071850707,-500.0,9.918e-05,2]
[352389912,1739071850717,-500.0,9.918e-05,2]
[352389913,1739071850727,-500.0,9.918e-05,2]
[352389914,1739071850736,-500.0,9.918e-05,2]
[352389915,1739071850746,-500.0,9.918e-05,2]
[352389916,1739071850755,-500.0,9.918e-05,2]
[352389917,1739071850765,-500.0,9.918e-05,2]
[352389918,1739071850775,-465.87,9.918e-05,2]
[352389919,1739071850785,-500.0,9.918e-05,2]
[352389920,1739071850795,-500.0,9.918e-05,2]
[352389921,1739071850805,-610.57,9.918e-05,2]
[352389922,1739071850815,-500.0,9.918e-05,2]
[352389923,1739071850824,-500.0,9.918e-05,2]
[352389924,1739071850834,-500.0,9.918e-05,2]
[352389925,1739071850844,-500.0,9.918e-05,2]
[352389926,1739071850854,-500.0,9.918e-05,2]
[352389927,1739071850864,-500.0,9.918e-05,2]
[352389928,1739071850874,-500.0,9.918e-05,2]
[352389929,1739071850883,-500.0,9.918e-05,2]
[352389930,1739071850893,-500.0,9.918e-05,2]
[352389931,1739071850903,-500.0,9.918e-05,2]
[352389932,1739071850912,-500.0,9.918e-05,2]
[352389933,1739071850923,-500.0,9.918e-05,2]
[352389934,1739071850933,-561.7,9.918e-05,2]
[352389935,1739071850942,-500.0,9.918e-05,2]
[352389936,1739071850951,-676.24,9.918e-05,2]
[352389937,1739071850960,-507.8782895,9.918e-05,2]
[352389938,1739071850969,-500.0,9.918e-05,2]
[352389939,1739071850979,-500.0,9.918e-05,2]
[352389940,1739071850989,-500.0,9.918e-05,2]
[352389941,1739071850999,-500.0,9.918e-05,2]
[352389942,1739071851010,-992.36,9.918e-05,2]
[352389943,1739071851021,-757.28,9.918e-05,2]
[352389944,1739071851033,-510.08082336,9.918e-05,2]
[352389945,1739071851043,-500.0,9.918e-05,2]
[352389946,1739071851053,-500.0,9.918e-05,2]
[352389947,1739071851064,-500.0,9.918e-05,2]
[352389948,1739071851075,-500.0,9.918e-05,2]
[352389949,1739071851084,-500.0,9.918e-05,2]
[352389950,1739071851094,-500.0,9.918e-05,2]
[352389951,1739071851103,-500.0,9.918e-05,2]
[352389952,1739071851113,-500.0,9.918e-05,2]
[352389953,1739071851123,-572.12,9.918e-05,2]
[352389954,1739071851132,-500.0,9.918e-05,2]
[352389955,1739071851142,-500.0,9.918e-05,2]
[352389956,1739071851152,-500.0,9.918e-05,2]
[352389957,1739071851161,-506.51360275,9.918e-05,2]
[352389958,1739071851171,-476.00068469,9.918e-05,2]
[352389959,1739071851181,-500.0,9.918e-05,2]
[352389960,1739071851191,-500.0,9.918e-05,2]
[352389961,1739071851200,-526.36,9.918e-05,2]
[352389962,1739071851210,-500.0,9.918e-05,2]
[352389963,1739071851220,-500.0,9.918e-05,2]
[352389964,1739071851232,-538.09,9.918e-05,2]
[352389965,1739071851242,-523.98,9.918e-05,2]
[352389966,1739071851254,-553.37,9.918e-05,2]
[352389967,1739071851266,-527.8398877,9.918e-05,2]
[352389968,1739071851275,-500.0,9.918e-05,2]
[352389969,1739071851285,-500.0,9.918e-05,2]
[352389970,1739071851294,-508.05250245,9.918e-05,2]
[352389971,1739071851304,-941.55,9.918e-05,2]
[352389972,1739071851322,-1180.69,9.918e-05,2]
[352389973,1739071851332,-4828.19,9.918e-05,2]
[352389974,1739071851341,-573.85,9.918e-05,2]
[352389975,1739071851351,-500.0,9.918e-05,2]
[352389976,1739071851361,-500.0,9.918e-05,2]
[352389977,1739071851371,-500.0,9.918e-05,2]
[352389978,1739071851381,-1169.31,9.918e-05,2]
[352389979,1739071851390,-886.11,9.918e-05,2]
[352389980,1739071851400,-500.0,9.918e-05,2]
[352389981,1739071851411,-917.97,9.918e-05,2]
[352389982,1739071851420,-2052.96,9.918e-05,2]
[352389983,1739071851430,-500.0,9.918e-05,2]
[352389984,1739071851440,-500.0,9.918e-05,2]
[352389985,1739071851449,-541.12,9.918e-05,2]
[352389986,1739071851459,-500.0,9.919e-05,2]
[352389987,1739071851469,-500.0,9.919e-05,2]
[352389988,1739071851479,-500.0,9.919e-05,2]
[352389989,1739071851489,-500.0,9.919e-05,2]
[352389990,1739071851500,-500.0,9.919e-05,2]
[352389991,1739071851509,-500.0,9.919e-05,2]
[352389992,1739071851518,-500.0,9.919e-05,2]
[352389993,1739071851528,-500.0,9.919e-05,2]
[352389994,1739071851538,-500.0,9.919e-05,2]
[352389995,1739071851548,-500.0,9.919e-05,2]
[352389996,1739071851558,-500.0,9.919e-05,2]
[352389997,1739071851569,-500.0,9.919e-05,2]
[352389998,1739071851578,-500.0,9.919e-05,2]
[352389999,1739071851588,-500.0,9.919e-05,2]
[352390000,1739071851598,-500.0,9.919e-05,2]
[352390001,1739071851607,-500.0,9.919e-05,2]
[352390002,1739071851617,-444.92869029,9.919e-05,2]
[352390003,1739071851627,-500.0,9.919e-05,2]
[352390004,1739071851636,-500.0,9.919e-05,2]
[352390005,1739071851645,-500.0,9.919e-05,2]
[352390006,1739071851655,-500.0,9.919e-05,2]
[352390007,1739071851665,-530.6,9.919e-05,2]
[352390008,1739071851674,-500.0,9.919e-05,2]
[352390009,1739071851683,-500.0,9.919e-05,2]
[352390010,1739071851693,-500.0,9.919e-05,2]
[352390011,1739071851702,-500.0,9.919e-05,2]
[352390012,1739071851713,-500.0,9.919e-05,2]
[352390013,1739071851722,-500.0,9.919e-05,2]
[352390014,1739071851732,-500.0,9.919e-05,2]
[352390015,1739071851742,-843.72,9.919e-05,2]
[352390016,1739071851752,-150.99112454,9.919e-05,2]
[352390017,1739071851761,-500.0,9.919e-05,2]
[352390018,1739071851771,-951.06,9.919e-05,2]
[352390019,1739071851781,-500.0,9.919e-05,2]
[352390020,1739071851790,-500.0,9.919e-05,2]
[352390021,1739071851800,-500.0,9.919e-05,2]
[352390022,1739071851810,-500.0,9.919e-05,2]
[352390023,1739071851821,-500.0,9.919e-05,2]
[352390024,1739071851831,-500.0,9.919e-05,2]
[352390025,1739071851841,-500.0,9.919e-05,2]
[352390026,1739071851851,-523.63,9.919e-05,2]
[352390027,1739071851861,-500.0,9.919e-05,2]
[352390028,1739071851871,-599.35,9.919e-05,2]
[352390029,1739071851880,-500.0,9.919e-05,2]
[352390030,1739071851890,-500.0,9.919e-05,2]
[352390031,1739071851899,-575.48,9.919e-05,2]
[352390032,1739071851909,-500.0,9.919e-05,2]
[352390033,1739071851919,-500.0,9.919e-05,2]
[352390034,1739071851929,-557.04,9.919e-05,2]
[352390035,1739071851939,-500.0,9.919e-05,2]
[352390036,1739071851948,-500.0,9.919e-05,2]
[352390037,1739071851958,-500.0,9.919e-05,2]
[352390038,1739071851967,-500.0,9.919e-05,2]
[352390039,1739071851977,-500.0,9.919e-05,2]
[352390040,1739071851986,-657.45,9.919e-05,2]
[352390041,1739071851997,-500.0,9.919e-05,2]
[352390042,1739071852006,-500.0,9.919e-05,2]
[352390043,1739071852017,-553.28,9.919e-05,2]
[352390044,1739071852027,-506.47,9.919e-05,2]
[352390045,1739071852039,-500.0,9.919e-05,2]
[352390046,1739071852049,-500.0,9.919e-05,2]
[352390047,1739071852058,-500.0,9.919e-05,2]
[352390048,1739071852069,-500.0,9.919e-05,2]
[352390049,1739071852079,-500.0,9.919e-05,2]
[352390050,1739071852088,-342.14564173,9.955e-05,2]
[352390051,1739071852098,-179.26624667,0.0001,2]
[352390052,1739071852108,-748.92729754,0.0001,2]
[352390053,1739071852118,-57953.88751991,0.0001,2]
[352390054,1739071852127,-174158.87902724,0.0001,2]
[352390055,1739071852137,-500.0,0.00010054,2]
[352390056,1739071852147,-500.0,0.00010054,2]
[352390057,1739071852156,-500.0,0.00010055,2]
[352390058,1739071852165,-500.0,0.00010055,2]
[352390059,1739071852175,-500.0,0.00010055,2]
[352390060,1739071852185,-289.812615,0.00010055,2]
[352390061,1739071852194,-319.505376,0.00010055,2]
[352390062,1739071852204,-500.0,0.00010055,2]
[352390063,1739071852213,-500.0,0.00010055,2]
[352390064,1739071852223,-500.0,0.00010055,2]
[352390065,1739071852232,-500.0,0.00010055,2]
[352390066,1739071852242,-628.43,0.00010055,2]
[352390067,1739071852251,-1055.42,0.00010055,2]
[352390068,1739071852260,-500.0,0.00010055,2]
[352390069,1739071852270,-755.58,0.00010055,2]
[352390070,1739071852280,-776.18,0.00010055,2]
[352390071,1739071852290,-500.0,0.00010055,2]
[352390072,1739071852299,-500.0,0.00010055,2]
[352390073,1739071852309,-500.0,0.00010055,2]
[352390074,1739071852319,-500.0,0.00010055,2]
[352390075,1739071852329,-610.57,0.00010055,2]
[352390076,1739071852339,-500.0,0.00010055,2]
[352390077,1739071852348,-500.0,0.00010055,2]
[352390078,1739071852357,-500.0,0.00010055,2]
[352390079,1739071852367,-500.0,0.00010055,2]
[352390080,1739071852376,-500.0,0.00010055,2]
[352390081,1739071852385,-500.0,0.00010055,2]
[352390082,1739071852395,-500.0,0.00010055,2]
[352390083,1739071852404,-561.7,0.00010055,2]
[352390084,1739071852414,-676.24,0.00010055,2]
[352390085,1739071852423,-500.0,0.00010055,2]
[352390086,1739071852433,-992.36,0.00010055,2]
[352390087,1739071852442,-757.28,0.00010055,2]
[352390088,1739071852452,-500.0,0.00010055,2]
[352390089,1739071852461,-500.0,0.00010055,2]
[352390090,1739071852471,-500.0,0.00010055,2]
[352390091,1739071852480,-500.0,0.00010055,2]
[352390092,1739071852489,-572.12,0.00010055,2]
[352390093,1739071852499,-500.0,0.00010055,2]
[352390094,1739071852508,-500.0,0.00010055,2]
[352390095,1739071852518,-500.0,0.00010055,2]
[352390096,1739071852528,-526.36,0.00010055,2]
[352390097,1739071852537,-500.0,0.00010055,2]
[352390098,1739071852547,-500.0,0.00010055,2]
[352390099,1739071852556,-538.09,0.00010055,2]
[352390100,1739071852567,-523.98,0.00010055,2]
[352390101,1739071852576,-553.37,0.00010055,2]
[352390102,1739071852585,-500.0,0.00010055,2]
[352390103,1739071852595,-500.0,0.00010055,2]
[352390104,1739071852604,-941.55,0.00010055,2]
[352390105,1739071852613,-1180.69,0.00010055,2]
[352390106,1739071852622,-4828.19,0.00010055,2]
[352390107,1739071852631,-573.85,0.00010055,2]
[352390108,1739071852641,-500.0,0.00010055,2]
[352390109,1739071852651,-500.0,0.00010055,2]
[352390110,1739071852661,-500.0,0.00010055,2]
[352390111,1739071852671,-1169.31,0.00010055,2]
[352390112,1739071852680,-500.0,0.00010055,2]
[352390113,1739071852689,-886.11,0.00010055,2]
[352390114,1739071852699,-500.0,0.00010055,2]
[352390115,1739071852708,-917.97,0.00010055,2]
[352390116,1739071852717,-2052.96,0.00010055,2]
[352390117,1739071852727,-500.0,0.00010055,2]
[352390118,1739071852736,-500.0,0.00010055,2]
[352390119,1739071852745,-541.12,0.00010055,2]
[352390120,1739071852754,-500.0,0.00010056,2]
[352390121,1739071852764,-500.0,0.00010056,2]
[352390122,1739071852774,-500.0,0.00010056,2]
[352390123,1739071852783,-500.0,0.00010056,2]
[352390124,1739071852793,-500.0,0.00010056,2]
[352390125,1739071852802,-500.0,0.00010056,2]
[352390126,1739071852811,-500.0,0.00010056,2]
[352390127,1739071852821,-500.0,0.00010056,2]
[352390128,1739071852832,-500.0,0.00010056,2]
[352390129,1739071852842,-500.0,0.00010056,2]
[352390130,1739071852852,-500.0,0.00010056,2]
[352390131,1739071852862,-500.0,0.00010056,2]
[352390132,1739071852871,-500.0,0.00010056,2]
[352390133,1739071852881,-500.0,0.00010056,2]
[352390134,1739071852890,-500.0,0.00010056,2]
[352390135,1739071852900,-500.0,0.00010056,2]
[352390136,1739071852910,-500.0,0.00010056,2]
[352390137,1739071852919,-500.0,0.00010056,2]
[352390138,1739071852929,-500.0,0.00010056,2]
[352390139,1739071852939,-500.0,0.00010056,2]
[352390140,1739071852949,-530.6,0.00010056,2]
[352390141,1739071852959,-500.0,0.00010056,2]
[352390142,1739071852969,-500.0,0.00010056,2]
[352390143,1739071852978,-500.0,0.00010056,2]
[352390144,1739071852988,-500.0,0.00010056,2]
[352390145,1739071853048,-500.0,0.00010056,2]
[352390146,1739071853059,-500.0,0.00010056,2]
[352390147,1739071853070,-500.0,0.00010056,2]
[352390148,1739071853079,-500.0,0.00010056,2]
[352390149,1739071853088,-843.72,0.00010056,2]
[352390150,1739071853098,-500.0,0.00010056,2]
[352390151,1739071853109,-951.06,0.00010056,2]
[352390152,1739071853119,-500.0,0.00010056,2]
[352390153,1739071853128,-500.0,0.00010056,2]
[352390154,1739071853138,-500.0,0.00010056,2]
[352390155,1739071853148,-500.0,0.00010056,2]
[352390156,1739071853157,-500.0,0.00010056,2]
[352390157,1739071853166,-500.0,0.00010056,2]
[352390158,1739071853176,-500.0,0.00010056,2]
[352390159,1739071853185,-523.63,0.00010056,2]
[352390160,1739071853194,-500.0,0.00010056,2]
[352390161,1739071853204,-599.35,0.00010056,2]
[352390162,1739071853213,-500.0,0.00010056,2]
[352390163,1739071853222,-500.0,0.00010056,2]
[352390164,1739071853231,-500.0,0.00010056,2]
[352390165,1739071853240,-575.48,0.00010056,2]
[352390166,1739071853249,-500.0,0.00010056,2]
[352390167,1739071853258,-500.0,0.00010056,2]
[352390168,1739071853268,-557.04,0.00010056,2]
[352390169,1739071853277,-516.48476102,0.00010056,2]
[352390170,1739071853286,-500.0,0.00010056,2]
[352390171,1739071853295,-500.0,0.00010056,2]
[352390172,1739071853304,-500.0,0.00010056,2]
[352390173,1739071853315,-500.0,0.00010056,2]
[352390174,1739071853326,-657.45,0.00010056,2]
[352390175,1739071853335,-500.0,0.00010056,2]
[352390176,1739071853345,-500.0,0.00010056,2]
[352390177,1739071853355,-553.28,0.00010056,2]
[352390178,1739071853365,-506.47,0.00010056,2]
[352390179,1739071853375,-500.0,0.00010056,2]
[352390180,1739071853384,-500.0,0.00010056,2]
[352390181,1739071853394,-500.0,0.00010056,2]
[352390182,1739071853404,-500.0,0.00010056,2]
[352390183,1739071853413,-500.0,0.00010056,2]
[352390184,1739071853423,-502.39430917,0.00010127,2]
[352390185,1739071853432,-177.84,0.00010137,2]
[352390186,1739071853443,-506.16335473,0.0001015,2]
[352390187,1739071853452,-500.0,0.00010191,2]
[352390188,1739071853463,-171.20932206,0.00010191,2]
[352390189,1739071853472,-500.0,0.00010192,2]
[352390190,1739071853481,-500.0,0.00010192,2]
[352390191,1739071853491,-500.0,0.00010192,2]
[352390192,1739071853499,-289.812615,0.00010192,2]
[352390193,1739071853509,-319.505376,0.00010192,2]
[352390194,1739071853518,-500.0,0.00010192,2]
[352390195,1739071853527,-500.0,0.00010192,2]
[352390196,1739071853536,-500.0,0.00010192,2]
[352390197,1739071853546,-500.0,0.00010192,2]
[352390198,1739071853556,-628.43,0.00010192,2]
[352390199,1739071853564,-1055.42,0.00010192,2]
[352390200,1739071853574,-755.58,0.00010192,2]
[352390201,1739071853584,-776.18,0.00010192,2]
[352390202,1739071853593,-500.0,0.00010192,2]
[352390203,1739071853602,-500.0,0.00010192,2]
[352390204,1739071853611,-500.0,0.00010192,2]
[352390205,1739071853621,-500.0,0.00010192,2]
[352390206,1739071853630,-610.57,0.00010192,2]
[352390207,1739071853640,-500.0,0.00010192,2]
[352390208,1739071853649,-500.0,0.00010192,2]
[352390209,1739071853659,-500.0,0.00010192,2]
[352390210,1739071853668,-500.0,0.00010192,2]
[352390211,1739071853677,-500.0,0.00010192,2]
[352390212,1739071853687,-500.0,0.00010192,2]
[352390213,1739071853696,-500.0,0.00010192,2]
[352390214,1739071853706,-561.7,0.00010192,2]
[352390215,1739071853715,-676.24,0.00010192,2]
[352390216,1739071853725,-500.0,0.00010192,2]